[Event "MČR juniorů a juniorek v rapid šachu 2024"]
[Site "Hotel Fit Fun, Harrachov, Czech Republic"]
[Date "2024.09.21"]
[Round "2.33"]
[White "Martinkovicova Nela"]
[Black "Budil Vaclav"]
[Result "0-1"]
[TimeControl "20+5"]
[WhiteFideId "23715596"]
[BlackFideId "23776226"]
[WhiteElo "1446"]
[BlackElo "1697"]

1. e4 {[%clk 00:20:07]} {[%emt 00:00:03]} c5 {[%clk 00:20:09]} {[%emt
00:00:02]} 2. c4 {[%clk 00:20:06]} {[%emt 00:00:06]} Nc6 {[%clk 00:20:08]}
{[%emt 00:00:06]} 3. Nc3 {[%clk 00:20:01]} {[%emt 00:00:10]} g6 {[%clk
00:20:10]} {[%emt 00:00:03]} 4. g3 {[%clk 00:20:02]} {[%emt 00:00:04]} Bg7
{[%clk 00:20:11]} {[%emt 00:00:03]} 5. Bg2 {[%clk 00:19:51]} {[%emt 00:00:16]}
d6 {[%clk 00:20:05]} {[%emt 00:00:11]} 6. d3 {[%clk 00:19:40]} {[%emt
00:00:17]} Nf6 {[%clk 00:20:02]} {[%emt 00:00:08]} 7. f4 {[%clk 00:19:24]}
{[%emt 00:00:21]} O-O {[%clk 00:19:59]} {[%emt 00:00:08]} 8. Nge2 {[%clk
00:19:11]} {[%emt 00:00:18]} Re8 {[%clk 00:18:20]} {[%emt 00:01:44]} 9. O-O
{[%clk 00:18:39]} {[%emt 00:00:36]} a6 {[%clk 00:18:02]} {[%emt 00:00:24]} 10.
Be3 {[%clk 00:18:24]} {[%emt 00:00:19]} Bg4 {[%clk 00:17:17]} {[%emt 00:00:50]}
11. Qd2 {[%clk 00:18:06]} {[%emt 00:00:23]} Nd7 {[%clk 00:17:06]} {[%emt
00:00:17]} 12. h3 {[%clk 00:17:32]} {[%emt 00:00:38]} Bxe2 {[%clk 00:17:06]}
{[%emt 00:00:05]} 13. Qxe2 {[%clk 00:17:31]} {[%emt 00:00:06]} Qa5 {[%clk
00:16:44]} {[%emt 00:00:28]} 14. Bd2 {[%clk 00:16:47]} {[%emt 00:00:48]} Nd4
{[%clk 00:16:41]} {[%emt 00:00:08]} 15. Qd1 {[%clk 00:16:16]} {[%emt 00:00:36]}
Qd8 {[%clk 00:16:03]} {[%emt 00:00:44]} 16. Rb1 {[%clk 00:15:57]} {[%emt
00:00:23]} e6 {[%clk 00:15:59]} {[%emt 00:00:09]} 17. Ne2 {[%clk 00:15:43]}
{[%emt 00:00:20]} b5 {[%clk 00:15:12]} {[%emt 00:00:52]} 18. b3 {[%clk
00:15:17]} {[%emt 00:00:31]} Rb8 {[%clk 00:14:57]} {[%emt 00:00:20]} 19. Nxd4
{[%clk 00:13:20]} {[%emt 00:02:02]} Bxd4+ {[%clk 00:14:59]} {[%emt 00:00:03]}
20. Kh1 {[%clk 00:13:17]} {[%emt 00:00:07]} f5 {[%clk 00:12:03]} {[%emt
00:03:02]} 21. Qc1 {[%clk 00:12:05]} {[%emt 00:01:16]} b4 {[%clk 00:11:56]}
{[%emt 00:00:13]} 22. Be3 {[%clk 00:12:00]} {[%emt 00:00:10]} Bg7 {[%clk
00:11:16]} {[%emt 00:00:45]} 23. Qc2 {[%clk 00:10:18]} {[%emt 00:01:46]} Qc7
{[%clk 00:09:42]} {[%emt 00:01:39]} 24. Rbe1 {[%clk 00:10:02]} {[%emt
00:00:21]} Nb6 {[%clk 00:09:10]} {[%emt 00:00:38]} 25. Bd2 {[%clk 00:09:18]}
{[%emt 00:00:48]} Red8 {[%clk 00:08:30]} {[%emt 00:00:45]} 26. exf5 {[%clk
00:08:20]} {[%emt 00:01:03]} exf5 {[%clk 00:08:29]} {[%emt 00:00:07]} 27. Re6
{[%clk 00:07:30]} {[%emt 00:00:54]} Re8 {[%clk 00:07:56]} {[%emt 00:00:39]} 28.
Rfe1 {[%clk 00:06:57]} {[%emt 00:00:38]} Rxe6 {[%clk 00:07:48]} {[%emt
00:00:13]} 29. Rxe6 {[%clk 00:06:55]} {[%emt 00:00:05]} Qd7 {[%clk 00:07:44]}
{[%emt 00:00:11]} 30. Re1 {[%clk 00:06:23]} {[%emt 00:00:36]} Re8 {[%clk
00:07:33]} {[%emt 00:00:16]} 31. Kh2 {[%clk 00:05:47]} {[%emt 00:00:41]} Bd4
{[%clk 00:07:04]} {[%emt 00:00:35]} 32. Rxe8+ {[%clk 00:05:09]} {[%emt
00:00:43]} Qxe8 {[%clk 00:07:04]} {[%emt 00:00:04]} 33. Qd1 {[%clk 00:05:01]}
{[%emt 00:00:13]} a5 {[%clk 00:06:42]} {[%emt 00:00:28]} 34. Qe1 {[%clk
00:04:43]} {[%emt 00:00:22]} Qxe1 {[%clk 00:03:33]} {[%emt 00:03:14]} 35. Bxe1
{[%clk 00:04:44]} {[%emt 00:00:04]} Be3 {[%clk 00:03:29]} {[%emt 00:00:10]} 36.
Bh1 {[%clk 00:03:22]} {[%emt 00:01:27]} Kf7 {[%clk 00:02:15]} {[%emt 00:01:19]}
37. Kg2 {[%clk 00:02:15]} {[%emt 00:01:11]} Ke6 {[%clk 00:01:15]} {[%emt
00:01:05]} 38. Bf2 {[%clk 00:01:58]} {[%emt 00:00:22]} Bxf2 {[%clk 00:00:53]}
{[%emt 00:00:27]} 39. Kxf2 {[%clk 00:02:01]} {[%emt 00:00:02]} d5 {[%clk
00:00:43]} {[%emt 00:00:16]} 40. Ke3 {[%clk 00:01:53]} {[%emt 00:00:13]} h6
{[%clk 00:00:23]} {[%emt 00:00:26]} 41. g4 {[%clk 00:01:23]} {[%emt 00:00:34]}
d4+ {[%clk 00:00:09]} {[%emt 00:00:19]} 42. Kf3 {[%clk 00:01:19]} {[%emt
00:00:08]} a4 {[%clk 00:00:12]} {[%emt 00:00:03]} 43. Kg3 {[%clk 00:01:16]}
{[%emt 00:00:06]} axb3 {[%clk 00:00:13]} {[%emt 00:00:05]} 44. axb3 {[%clk
00:01:19]} {[%emt 00:00:02]} Na4 {[%clk 00:00:14]} {[%emt 00:00:04]} 45. Bd5+
{[%clk 00:00:41]} {[%emt 00:00:44]} Kf6 {[%clk 00:00:11]} {[%emt 00:00:08]} 46.
Kf3 {[%emt 00:00:23]} fxg4+ {[%clk 00:00:06]} {[%emt 00:00:01]} 47. hxg4 {[%clk
00:00:31]} {[%emt 00:00:05]} Nb6 {[%clk 00:00:10]} {[%emt 00:00:02]} 48. Bc6
{[%clk 00:00:22]} {[%emt 00:00:13]} Nc8 {[%clk 00:00:14]} {[%emt 00:00:02]} 49.
Bb7 {[%clk 00:00:19]} {[%emt 00:00:07]} Ne7 {[%clk 00:00:16]} {[%emt 00:00:03]}
50. Ke4 {[%clk 00:00:17]} {[%emt 00:00:07]} h5 {[%clk 00:00:15]} {[%emt
00:00:07]} 51. gxh5 {[%clk 00:00:18]} {[%emt 00:00:04]} gxh5 {[%clk 00:00:18]}
{[%emt 00:00:01]} 52. Kf3 {[%clk 00:00:15]} {[%emt 00:00:08]} Nf5 {[%clk
00:00:20]} {[%emt 00:00:04]} 53. Be4 {[%clk 00:00:08]} {[%emt 00:00:12]} Kg6
{[%clk 00:00:08]} {[%emt 00:00:17]} 54. Kg2 {[%clk 00:00:10]} {[%emt 00:00:03]}
Kf6 {[%clk 00:00:09]} {[%emt 00:00:04]} 55. Kh3 {[%clk 00:00:11]} {[%emt
00:00:03]} Ng7 {[%clk 00:00:12]} {[%emt 00:00:03]} 56. Kh4 {[%clk 00:00:07]}
{[%emt 00:00:08]} Ke6 {[%clk 00:00:06]} {[%emt 00:00:11]} 57. Kg3 {[%clk
00:00:07]} {[%emt 00:00:05]} Ke7 {[%clk 00:00:09]} {[%emt 00:00:02]} 58. Kf3
{[%clk 00:00:06]} {[%emt 00:00:06]} Kf6 {[%clk 00:00:13]} {[%emt 00:00:01]} 59.
Kg3 {[%clk 00:00:10]} Nf5+ {[%clk 00:00:16]} {[%emt 00:00:01]} 60. Kf3 {[%clk
00:00:13]} {[%emt 00:00:02]} Ne3 {[%clk 00:00:19]} {[%emt 00:00:02]} 61. Kg3
{[%clk 00:00:15]} {[%emt 00:00:03]} Kg7 {[%clk 00:00:23]} 62. Kh4 {[%clk
00:00:17]} {[%emt 00:00:03]} Kh6 {[%clk 00:00:27]} {[%emt 00:00:02]} 63. Kg3
{[%clk 00:00:18]} {[%emt 00:00:03]} Nf1+ {[%clk 00:00:25]} {[%emt 00:00:08]} 64.
Kh4 {[%clk 00:00:19]} {[%emt 00:00:03]} Nd2 {[%emt 00:00:04]} 65. Kh3 {[%clk
00:00:22]} Nxb3 {[%clk 00:00:31]} {[%emt 00:00:02]} 66. Kh4 {[%clk 00:00:23]}
{[%emt 00:00:03]} Nd2 {[%clk 00:00:35]} {[%emt 00:00:02]} 67. Bg2 {[%clk
00:00:25]} {[%emt 00:00:03]} b3 {[%clk 00:00:38]} {[%emt 00:00:02]} 68. f5
{[%clk 00:00:25]} {[%emt 00:00:05]} b2 {[%clk 00:00:43]} 69. f6 {[%clk
00:00:28]} {[%emt 00:00:02]} b1=Q {[%clk 00:00:46]} 70. f7 {[%clk 00:00:30]}
{[%emt 00:00:04]} Qe1+ {[%clk 00:00:45]} {[%emt 00:00:05]} 71. Kh3 {[%clk
00:00:31]} {[%emt 00:00:04]} Qe3+ {[%clk 00:00:46]} {[%emt 00:00:05]} 72. Kh2
{[%clk 00:00:33]} {[%emt 00:00:03]} Qf4+ {[%clk 00:00:49]} {[%emt 00:00:01]} 73.
Kg1 {[%clk 00:00:33]} {[%emt 00:00:04]} Qxf7 {[%clk 00:00:52]} {[%emt
00:00:03]} 0-1



[ePGN "0.1;DGT LiveChess/2.2.6"]

[Event "MČR juniorů a juniorek v rapid šachu 2024"]
[Site "Hotel Fit Fun, Harrachov, Czech Republic"]
[Date "2024.09.21"]
[Round "2.34"]
[White "Pes Matej"]
[Black "Zadrapova Gabriela"]
[Result "1-0"]
[TimeControl "20+5"]
[WhiteFideId "23766816"]
[BlackFideId "23753056"]
[WhiteElo "1697"]
[BlackElo "1456"]

1. e4 {[%clk 00:20:05]} {[%emt 00:00:05]} e5 {[%clk 00:20:10]} {[%emt
00:00:02]} 2. f4 {[%clk 00:20:08]} {[%emt 00:00:01]} d6 {[%clk 00:19:55]}
{[%emt 00:00:20]} 3. Nf3 {[%clk 00:20:06]} {[%emt 00:00:06]} Nc6 {[%clk
00:19:59]} {[%emt 00:00:02]} 4. Bb5 {[%clk 00:20:09]} {[%emt 00:00:02]} exf4
{[%clk 00:19:37]} {[%emt 00:00:27]} 5. d4 {[%clk 00:19:46]} {[%emt 00:00:28]}
a6 {[%clk 00:19:30]} {[%emt 00:00:12]} 6. Bxc6+ {[%clk 00:18:47]} {[%emt
00:01:04]} bxc6 {[%clk 00:19:34]} 7. Bxf4 {[%clk 00:18:48]} {[%emt 00:00:03]}
Be7 {[%clk 00:19:06]} {[%emt 00:00:33]} 8. O-O {[%clk 00:18:42]} {[%emt
00:00:10]} Nf6 {[%clk 00:18:56]} {[%emt 00:00:17]} 9. Nc3 {[%clk 00:18:38]}
{[%emt 00:00:09]} O-O {[%clk 00:18:43]} {[%emt 00:00:17]} 10. Qe1 {[%clk
00:17:12]} {[%emt 00:01:31]} Rb8 {[%clk 00:17:11]} {[%emt 00:01:38]} 11. b3
{[%clk 00:17:04]} {[%emt 00:00:12]} Re8 {[%clk 00:16:53]} {[%emt 00:00:24]} 12.
e5 {[%clk 00:16:45]} {[%emt 00:00:24]} dxe5 {[%clk 00:14:45]} {[%emt 00:02:13]}
13. dxe5 {[%clk 00:16:40]} {[%emt 00:00:10]} Nd5 {[%clk 00:12:56]} {[%emt
00:01:53]} 14. Rd1 {[%clk 00:16:10]} {[%emt 00:00:35]} Be6 {[%clk 00:12:56]}
{[%emt 00:00:05]} 15. Ne4 {[%clk 00:14:30]} {[%emt 00:01:45]} Qc8 {[%clk
00:11:55]} {[%emt 00:01:07]} 16. Bg5 {[%clk 00:13:21]} {[%emt 00:01:13]} Bb4
{[%clk 00:08:51]} {[%emt 00:03:09]} 17. Qg3 {[%clk 00:11:35]} {[%emt 00:01:52]}
Bg4 {[%clk 00:07:48]} {[%emt 00:01:07]} 18. h3 {[%clk 00:10:23]} {[%emt
00:01:17]} Bh5 {[%clk 00:07:47]} {[%emt 00:00:06]} 19. c4 {[%clk 00:07:43]}
{[%emt 00:02:46]} Nc3 {[%clk 00:07:02]} {[%emt 00:00:50]} 20. Nxc3 {[%clk
00:05:41]} {[%emt 00:02:07]} Bxc3 {[%clk 00:07:04]} {[%emt 00:00:03]} 21. Bh6
{[%clk 00:05:24]} {[%emt 00:00:23]} Bg6 {[%clk 00:07:07]} {[%emt 00:00:01]} 22.
Bd2 {[%clk 00:05:01]} {[%emt 00:00:27]} Bxd2 {[%clk 00:05:53]} {[%emt
00:01:19]} 23. Rxd2 {[%clk 00:05:05]} {[%emt 00:00:02]} Qe6 {[%clk 00:05:16]}
{[%emt 00:00:42]} 24. Re1 {[%clk 00:04:27]} {[%emt 00:00:42]} Bh5 {[%clk
00:04:05]} {[%emt 00:01:16]} 25. Nd4 {[%clk 00:04:00]} {[%emt 00:00:33]} Qd7
{[%clk 00:02:45]} {[%emt 00:01:22]} 26. Qh4 {[%clk 00:03:11]} {[%emt 00:00:56]}
Bg6 {[%clk 00:02:30]} {[%emt 00:00:20]} 27. Rde2 {[%clk 00:02:35]} {[%emt
00:00:41]} Rbd8 {[%clk 00:02:10]} {[%emt 00:00:25]} 28. Nf3 {[%clk 00:02:22]}
{[%emt 00:00:18]} Qf5 {[%clk 00:01:38]} {[%emt 00:00:36]} 29. e6 {[%clk
00:01:47]} {[%emt 00:00:42]} Bh5 {[%clk 00:00:10]} {[%emt 00:01:33]} 30. Re5
{[%clk 00:00:36]} {[%emt 00:01:16]} 1-0



[ePGN "0.1;DGT LiveChess/2.2.6"]

[Event "MČR juniorů a juniorek v rapid šachu 2024"]
[Site "Hotel Fit Fun, Harrachov, Czech Republic"]
[Date "2024.09.21"]
[Round "2.35"]
[White "Marxova Sarka"]
[Black "Kopecka Anna"]
[Result "1-0"]
[TimeControl "20+5"]
[WhiteFideId "23701862"]
[BlackFideId "23767740"]
[WhiteElo "1684"]
[BlackElo "1431"]

1. e4 {[%clk 00:20:08]} {[%emt 00:00:02]} c5 {[%clk 00:20:09]} 2. Nf3 {[%clk
00:20:11]} {[%emt 00:00:02]} Nc6 {[%clk 00:20:13]} {[%emt 00:00:01]} 3. d4
{[%clk 00:20:14]} {[%emt 00:00:01]} cxd4 {[%clk 00:20:17]} {[%emt 00:00:02]} 4.
Nxd4 {[%clk 00:20:18]} {[%emt 00:00:01]} Nf6 {[%clk 00:20:19]} {[%emt
00:00:03]} 5. Nc3 {[%clk 00:20:21]} {[%emt 00:00:02]} g6 {[%clk 00:20:22]}
{[%emt 00:00:02]} 6. Be3 {[%clk 00:20:21]} {[%emt 00:00:04]} Bg7 {[%clk
00:20:23]} {[%emt 00:00:05]} 7. f3 {[%clk 00:20:22]} {[%emt 00:00:04]} O-O
{[%clk 00:20:24]} {[%emt 00:00:04]} 8. Bc4 {[%clk 00:20:16]} {[%emt 00:00:11]}
d6 {[%clk 00:20:03]} {[%emt 00:00:25]} 9. Qd2 {[%clk 00:19:57]} {[%emt
00:00:24]} Bd7 {[%clk 00:19:07]} {[%emt 00:01:01]} 10. Nxc6 {[%clk 00:19:26]}
{[%emt 00:00:37]} Bxc6 {[%clk 00:19:09]} {[%emt 00:00:03]} 11. Bh6 {[%clk
00:19:28]} {[%emt 00:00:02]} Bxh6 {[%clk 00:18:37]} {[%emt 00:00:37]} 12. Qxh6
{[%clk 00:19:28]} {[%emt 00:00:06]} Rc8 {[%clk 00:18:12]} {[%emt 00:00:29]} 13.
Bd3 {[%clk 00:18:41]} {[%emt 00:00:53]} e6 {[%clk 00:16:42]} {[%emt 00:01:34]}
14. h4 {[%clk 00:18:01]} {[%emt 00:00:46]} Kh8 {[%clk 00:13:25]} {[%emt
00:03:22]} 15. g4 {[%clk 00:17:26]} {[%emt 00:00:40]} Qa5 {[%clk 00:09:14]}
{[%emt 00:04:13]} 16. h5 {[%clk 00:15:27]} {[%emt 00:02:06]} Ng8 {[%clk
00:07:25]} {[%emt 00:01:54]} 17. Qd2 {[%clk 00:14:24]} {[%emt 00:01:08]} Qb4
{[%clk 00:06:10]} {[%emt 00:01:19]} 18. O-O-O {[%clk 00:12:26]} {[%emt
00:02:04]} Qd4 {[%clk 00:04:54]} {[%emt 00:01:19]} 19. Rh3 {[%clk 00:10:09]}
{[%emt 00:02:24]} d5 {[%clk 00:04:14]} {[%emt 00:00:46]} 20. Rdh1 {[%clk
00:09:57]} {[%emt 00:00:16]} Nf6 {[%clk 00:01:15]} {[%emt 00:03:04]} 21. hxg6
{[%clk 00:08:24]} {[%emt 00:01:38]} fxg6 {[%clk 00:01:12]} {[%emt 00:00:09]} 22.
Rh6 {[%clk 00:06:01]} {[%emt 00:02:27]} 1-0



[ePGN "0.1;DGT LiveChess/2.2.6"]

[Event "MČR juniorů a juniorek v rapid šachu 2024"]
[Site "Hotel Fit Fun, Harrachov, Czech Republic"]
[Date "2024.09.21"]
[Round "2.36"]
[White "Vyslysel Petr"]
[Black "Horvath Michal"]
[Result "1-0"]
[TimeControl "20+5"]
[WhiteFideId "23730277"]
[WhiteElo "1678"]
[BlackElo "1000"]

1. d4 {[%clk 00:20:09]} f5 {[%clk 00:20:08]} {[%emt 00:00:02]} 2. Nc3 {[%clk
00:20:11]} {[%emt 00:00:03]} Nf6 {[%clk 00:20:12]} {[%emt 00:00:02]} 3. Bg5
{[%clk 00:20:15]} {[%emt 00:00:01]} g6 {[%clk 00:20:16]} 4. h4 {[%clk
00:20:18]} Bg7 {[%clk 00:20:17]} {[%emt 00:00:04]} 5. h5 {[%clk 00:20:22]} Nxh5
{[%clk 00:20:13]} {[%emt 00:00:10]} 6. Rxh5 {[%clk 00:20:25]} {[%emt 00:00:01]}
gxh5 {[%clk 00:20:16]} {[%emt 00:00:02]} 7. e4 {[%clk 00:20:28]} {[%emt
00:00:02]} d6 {[%clk 00:20:01]} {[%emt 00:00:20]} 8. Qxh5+ {[%clk 00:20:06]}
{[%emt 00:00:27]} Kf8 {[%clk 00:19:59]} {[%emt 00:00:07]} 9. Nd5 {[%clk
00:15:00]} {[%emt 00:05:11]} Qd7 {[%clk 00:17:41]} {[%emt 00:02:23]} 10. Bxe7+
{[%clk 00:14:30]} {[%emt 00:00:35]} Qxe7 {[%clk 00:15:15]} {[%emt 00:02:32]} 11.
Nxe7 {[%clk 00:14:32]} {[%emt 00:00:02]} Kxe7 {[%clk 00:15:18]} {[%emt
00:00:02]} 12. Bc4 {[%clk 00:14:14]} {[%emt 00:00:23]} Bxd4 {[%clk 00:14:19]}
{[%emt 00:01:04]} 13. O-O-O {[%clk 00:13:17]} {[%emt 00:01:02]} Be5 {[%clk
00:13:51]} {[%emt 00:00:33]} 14. Qf7+ {[%clk 00:11:05]} {[%emt 00:02:17]} Kd8
{[%clk 00:13:51]} {[%emt 00:00:05]} 15. Nf3 {[%clk 00:11:07]} {[%emt 00:00:03]}
Re8 {[%clk 00:12:37]} {[%emt 00:01:18]} 16. Nxe5 {[%clk 00:09:32]} {[%emt
00:01:41]} Rxe5 {[%clk 00:12:18]} {[%emt 00:00:23]} 17. Qf6+ {[%clk 00:09:34]}
{[%emt 00:00:04]} Re7 {[%clk 00:12:21]} {[%emt 00:00:02]} 18. exf5 {[%clk
00:09:33]} {[%emt 00:00:06]} Bd7 {[%clk 00:12:20]} {[%emt 00:00:06]} 19. Re1
{[%clk 00:09:28]} {[%emt 00:00:10]} Nc6 {[%clk 00:12:22]} {[%emt 00:00:04]} 20.
Bd5 {[%clk 00:09:22]} {[%emt 00:00:10]} Ne5 {[%clk 00:12:02]} {[%emt 00:00:25]}
21. f4 {[%clk 00:08:56]} {[%emt 00:00:31]} Bc6 {[%clk 00:10:26]} {[%emt
00:01:41]} 22. fxe5 {[%clk 00:08:25]} {[%emt 00:00:35]} Kd7 {[%clk 00:10:04]}
{[%emt 00:00:27]} 23. Bxc6+ {[%clk 00:07:05]} {[%emt 00:01:24]} bxc6 {[%clk
00:10:02]} {[%emt 00:00:08]} 24. e6+ {[%clk 00:07:08]} {[%emt 00:00:02]} Kd8
{[%clk 00:09:48]} {[%emt 00:00:19]} 25. Rh1 {[%clk 00:07:11]} {[%emt 00:00:02]}
Ke8 {[%clk 00:09:24]} {[%emt 00:00:28]} 26. Qh8# {[%emt 00:00:03]} 1-0



[ePGN "0.1;DGT LiveChess/2.2.6"]

[Event "MČR juniorů a juniorek v rapid šachu 2024"]
[Site "Hotel Fit Fun, Harrachov, Czech Republic"]
[Date "2024.09.21"]
[Round "2.4"]
[White "Vilimek Vit"]
[Black "Stary Simon"]
[Result "1-0"]
[TimeControl "20+5"]
[WhiteFideId "23718218"]
[BlackFideId "23734353"]
[WhiteElo "2025"]
[BlackElo "1866"]

1. e4 {[%clk 00:20:06]} {[%emt 00:00:04]} c5 {[%clk 00:20:08]} {[%emt
00:00:03]} 2. b4 {[%clk 00:20:10]} {[%emt 00:00:01]} cxb4 {[%emt 00:00:06]} 3.
a3 e6 {[%clk 00:20:06]} {[%emt 00:00:06]} 4. axb4 {[%clk 00:20:18]} {[%emt
00:00:02]} Bxb4 {[%clk 00:20:09]} {[%emt 00:00:02]} 5. c3 {[%clk 00:20:22]} Be7
{[%clk 00:20:11]} {[%emt 00:00:03]} 6. d4 {[%clk 00:20:26]} {[%emt 00:00:01]}
d5 {[%clk 00:20:15]} 7. e5 {[%clk 00:20:30]} Nc6 {[%clk 00:20:14]} {[%emt
00:00:05]} 8. f4 {[%clk 00:20:34]} {[%emt 00:00:02]} h5 {[%clk 00:20:10]}
{[%emt 00:00:09]} 9. Nf3 {[%clk 00:20:34]} {[%emt 00:00:06]} Nh6 {[%clk
00:20:13]} {[%emt 00:00:01]} 10. Bd3 {[%clk 00:20:36]} {[%emt 00:00:04]} Nf5
{[%clk 00:20:09]} {[%emt 00:00:08]} 11. O-O {[%clk 00:20:37]} {[%emt 00:00:04]}
Bd7 {[%clk 00:20:06]} {[%emt 00:00:08]} 12. Na3 {[%clk 00:20:35]} {[%emt
00:00:07]} Rc8 {[%clk 00:19:47]} {[%emt 00:00:24]} 13. Qe1 {[%clk 00:20:16]}
{[%emt 00:00:25]} a6 {[%clk 00:19:46]} {[%emt 00:00:05]} 14. Nc2 {[%clk
00:20:06]} {[%emt 00:00:14]} Na5 {[%clk 00:19:05]} {[%emt 00:00:46]} 15. Rb1
{[%clk 00:19:55]} {[%emt 00:00:17]} Qc7 {[%clk 00:18:26]} {[%emt 00:00:44]} 16.
Bd2 {[%clk 00:19:58]} {[%emt 00:00:02]} Bc6 {[%clk 00:17:54]} {[%emt 00:00:37]}
17. Ne3 {[%clk 00:18:55]} {[%emt 00:01:08]} Nxe3 {[%clk 00:17:58]} {[%emt
00:00:01]} 18. Bxe3 {[%clk 00:18:52]} {[%emt 00:00:08]} Nc4 {[%clk 00:17:57]}
{[%emt 00:00:07]} 19. f5 {[%clk 00:18:42]} {[%emt 00:00:14]} Na3 {[%clk
00:17:22]} {[%emt 00:00:40]} 20. Rc1 {[%clk 00:18:11]} {[%emt 00:00:35]} Bb5
{[%clk 00:17:26]} {[%emt 00:00:02]} 21. Bxb5+ {[%clk 00:18:15]} {[%emt
00:00:02]} Nxb5 {[%clk 00:17:19]} {[%emt 00:00:11]} 22. Qg3 {[%clk 00:17:23]}
{[%emt 00:00:57]} Rg8 {[%clk 00:15:30]} {[%emt 00:01:54]} 23. fxe6 {[%clk
00:17:04]} {[%emt 00:00:23]} fxe6 {[%clk 00:15:33]} {[%emt 00:00:03]} 24. Qg6+
{[%clk 00:16:31]} {[%emt 00:00:38]} Kd7 {[%clk 00:15:30]} {[%emt 00:00:08]} 25.
c4 {[%clk 00:15:08]} {[%emt 00:01:29]} dxc4 {[%clk 00:15:14]} {[%emt 00:00:21]}
26. d5 {[%clk 00:15:12]} exd5 {[%clk 00:14:37]} {[%emt 00:00:42]} 27. Qf5+
{[%clk 00:15:12]} {[%emt 00:00:05]} Ke8 {[%clk 00:13:24]} {[%emt 00:01:18]} 28.
Qe6 {[%clk 00:15:02]} {[%emt 00:00:14]} Rf8 {[%clk 00:13:00]} {[%emt 00:00:29]}
29. Ng5 {[%clk 00:15:06]} {[%emt 00:00:02]} Rxf1+ {[%clk 00:10:37]} {[%emt
00:02:28]} 30. Rxf1 {[%clk 00:15:10]} {[%emt 00:00:01]} Rd8 {[%clk 00:09:00]}
{[%emt 00:01:42]} 31. Rf8+ {[%clk 00:15:11]} {[%emt 00:00:04]} 1-0



[ePGN "0.1;DGT LiveChess/2.2.6"]

[Event "MČR juniorů a juniorek v rapid šachu 2024"]
[Site "Hotel Fit Fun, Harrachov, Czech Republic"]
[Date "2024.09.21"]
[Round "2.5"]
[White "Husa Daniel"]
[Black "Stocek Martin"]
[Result "1-0"]
[TimeControl "20+5"]
[WhiteFideId "393487"]
[BlackFideId "380121"]
[WhiteElo "1866"]
[BlackElo "2021"]

1. d4 {[%clk 00:19:15]} {[%emt 00:00:54]} Nf6 {[%clk 00:20:05]} {[%emt
00:00:06]} 2. Nf3 {[%clk 00:19:17]} {[%emt 00:00:03]} d5 {[%clk 00:19:58]}
{[%emt 00:00:11]} 3. g3 {[%clk 00:19:11]} {[%emt 00:00:12]} e6 {[%clk
00:19:42]} {[%emt 00:00:21]} 4. Bg2 {[%clk 00:19:06]} {[%emt 00:00:10]} c5
{[%clk 00:19:35]} {[%emt 00:00:12]} 5. O-O {[%clk 00:18:41]} {[%emt 00:00:29]}
Nc6 {[%clk 00:18:56]} {[%emt 00:00:45]} 6. c4 {[%clk 00:18:00]} {[%emt
00:00:45]} dxc4 {[%clk 00:18:23]} {[%emt 00:00:39]} 7. dxc5 {[%clk 00:17:22]}
{[%emt 00:00:43]} Qxd1 {[%clk 00:18:13]} {[%emt 00:00:15]} 8. Rxd1 {[%clk
00:17:24]} {[%emt 00:00:02]} Bxc5 {[%clk 00:18:14]} {[%emt 00:00:04]} 9. Nbd2
{[%clk 00:16:37]} {[%emt 00:00:52]} c3 {[%clk 00:17:03]} {[%emt 00:01:17]} 10.
bxc3 {[%clk 00:16:32]} {[%emt 00:00:09]} O-O {[%clk 00:15:44]} {[%emt
00:01:24]} 11. Nb3 {[%clk 00:14:50]} {[%emt 00:01:47]} Be7 {[%clk 00:14:51]}
{[%emt 00:00:58]} 12. Nfd4 {[%clk 00:11:18]} {[%emt 00:03:38]} Rd8 {[%clk
00:10:58]} {[%emt 00:03:58]} 13. Bf4 {[%clk 00:09:43]} {[%emt 00:01:40]} Bd7
{[%clk 00:05:36]} {[%emt 00:05:26]} 14. Nb5 {[%clk 00:07:28]} {[%emt 00:02:20]}
e5 {[%clk 00:05:33]} {[%emt 00:00:09]} 15. Be3 {[%clk 00:06:54]} {[%emt
00:00:38]} Be8 {[%clk 00:04:57]} {[%emt 00:00:41]} 16. Nc5 {[%clk 00:04:57]}
{[%emt 00:02:02]} b6 {[%clk 00:01:46]} {[%emt 00:03:17]} 17. Ne4 {[%clk
00:04:04]} {[%emt 00:00:57]} Ng4 {[%clk 00:00:54]} {[%emt 00:00:57]} 18. Ned6
{[%clk 00:02:35]} {[%emt 00:01:33]} Nxe3 {[%clk 00:00:35]} {[%emt 00:00:25]} 19.
fxe3 {[%clk 00:02:35]} {[%emt 00:00:05]} Bxd6 {[%clk 00:00:12]} {[%emt
00:00:28]} 20. Nxd6 {[%clk 00:02:27]} {[%emt 00:00:13]} Bd7 {[%clk 00:00:11]}
{[%emt 00:00:06]} 21. Nb7 {[%clk 00:01:58]} {[%emt 00:00:34]} Be8 {[%clk
00:00:09]} {[%emt 00:00:07]} 22. Nxd8 {[%clk 00:01:50]} {[%emt 00:00:13]} Rxd8
{[%clk 00:00:08]} {[%emt 00:00:06]} 23. Bxc6 {[%clk 00:01:40]} {[%emt
00:00:14]} Rxd1+ {[%clk 00:00:12]} {[%emt 00:00:02]} 24. Rxd1 {[%clk 00:01:44]}
{[%emt 00:00:01]} Bxc6 {[%clk 00:00:16]} {[%emt 00:00:02]} 25. Rd8+ 1-0



[ePGN "0.1;DGT LiveChess/2.2.6"]